[Event "*** SCC Grand Prix: Titled Tuesday Blitz"]
[Site "Chess.com"]
[Date "2020.06.09"]
[Round "8"]
[White "Rish_97"]
[Black "Onischuk_V"]
[Result "1/2-1/2"]
[WhiteElo "2702"]
[BlackElo "2878"]
[TimeControl "180+1"]
[EndTime "10:31:11 PDT"]
[Termination "Game drawn by repetition"]

1. e4 {[%clk 0:03:00.1]} 1... d6 {[%clk 0:02:59.6]} 2. d4 {[%clk 0:02:57.9]}
2... Nf6 {[%clk 0:03:00.5]} 3. Nc3 {[%clk 0:02:57.8]} 3... g6 {[%clk 0:03:00.7]}
4. f4 {[%clk 0:02:40.1]} 4... Bg7 {[%clk 0:03:00.7]} 5. Nf3 {[%clk 0:02:39.4]}
5... O-O {[%clk 0:03:01.2]} 6. e5 {[%clk 0:02:39.9]} 6... dxe5 {[%clk
0:03:00.8]} 7. fxe5 {[%clk 0:02:40.8]} 7... Nd5 {[%clk 0:03:01.4]} 8. Bc4 {[%clk
0:02:21.5]} 8... Nxc3 {[%clk 0:03:01.5]} 9. bxc3 {[%clk 0:02:22.4]} 9... c5
{[%clk 0:03:02.1]} 10. O-O {[%clk 0:02:13.6]} 10... Bg4 {[%clk 0:03:02]} 11. Qd3
{[%clk 0:02:10.8]} 11... Nc6 {[%clk 0:02:56]} 12. Ng5 {[%clk 0:02:10.9]} 12...
e6 {[%clk 0:02:55.2]} 13. Qg3 {[%clk 0:02:08.2]} 13... Bf5 {[%clk 0:02:55]} 14.
Rxf5 {[%clk 0:02:06.8]} 14... exf5 {[%clk 0:02:54.9]} 15. e6 {[%clk 0:02:05.7]}
15... Bxd4+ {[%clk 0:02:54.7]} 16. Kf1 {[%clk 0:01:59.9]} 16... Be5 {[%clk
0:02:54.3]} 17. Bf4 {[%clk 0:01:58.6]} 17... Qd6 {[%clk 0:02:37.4]} 18. Qh4
{[%clk 0:01:56.6]} 18... h5 {[%clk 0:02:34.6]} 19. Nxf7 {[%clk 0:01:54.2]} 19...
Rxf7 {[%clk 0:02:34.7]} 20. exf7+ {[%clk 0:01:52.6]} 20... Kg7 {[%clk
0:02:34.1]} 21. Re1 {[%clk 0:01:51.2]} 21... Rf8 {[%clk 0:02:33.5]} 22. Rxe5
{[%clk 0:01:48.9]} 22... Nxe5 {[%clk 0:02:33.6]} 23. Qe1 {[%clk 0:01:49.5]}
23... Kf6 {[%clk 0:02:33.7]} 24. Qh4+ {[%clk 0:01:44.6]} 24... Kg7 {[%clk
0:02:33.6]} 25. Qe1 {[%clk 0:01:45.2]} 25... Kf6 {[%clk 0:02:33.9]} 26. Qh4+
{[%clk 0:01:45.4]} 26... Kg7 {[%clk 0:02:34.3]} 1/2-1/2

[Event "*** SCC Grand Prix: Titled Tuesday Blitz"]
[Site "Chess.com"]
[Date "2020.06.09"]
[Round "8"]
[White "vinniethepooh"]
[Black "RusPakhom"]
[Result "1-0"]
[WhiteElo "2561"]
[BlackElo "2391"]
[TimeControl "180+1"]
[EndTime "10:31:32 PDT"]
[Termination "vinniethepooh won by checkmate"]

1. d4 {[%clk 0:03:00.9]} 1... d5 {[%clk 0:02:59.1]} 2. c4 {[%clk 0:03:01.3]}
2... e6 {[%clk 0:02:59]} 3. Nc3 {[%clk 0:03:01.4]} 3... c6 {[%clk 0:02:59.2]} 4.
Nf3 {[%clk 0:03:01.2]} 4... dxc4 {[%clk 0:02:59.4]} 5. Bg5 {[%clk 0:02:58.5]}
5... Nf6 {[%clk 0:02:56.2]} 6. e4 {[%clk 0:02:57.7]} 6... Be7 {[%clk 0:02:28.3]}
7. Bxc4 {[%clk 0:02:56.6]} 7... O-O {[%clk 0:02:27.6]} 8. Bd3 {[%clk 0:02:49.7]}
8... a6 {[%clk 0:02:16.2]} 9. h4 {[%clk 0:02:41.1]} 9... b5 {[%clk 0:02:16.1]}
10. e5 {[%clk 0:02:40.5]} 10... Nd5 {[%clk 0:02:15]} 11. Bxe7 {[%clk 0:02:18]}
11... Qxe7 {[%clk 0:01:49.1]} 12. Bxh7+ {[%clk 0:02:07.4]} 12... Kxh7 {[%clk
0:01:50]} 13. Ng5+ {[%clk 0:02:06.3]} 13... Kg6 {[%clk 0:01:50.4]} 14. Qd3+
{[%clk 0:01:54.4]} 14... Kh6 {[%clk 0:01:39.8]} 15. Qh7# {[%clk 0:01:53.3]} 1-0

[Event "*** SCC Grand Prix: Titled Tuesday Blitz"]
[Site "Chess.com"]
[Date "2020.06.09"]
[Round "8"]
[White "chesslh19"]
[Black "GMJustin"]
[Result "1/2-1/2"]
[WhiteElo "2121"]
[BlackElo "2293"]
[TimeControl "180+1"]
[EndTime "10:32:22 PDT"]
[Termination "Game drawn by agreement"]

1. e4 {[%clk 0:03:00.9]} 1... e5 {[%clk 0:02:27.2]} 2. Nf3 {[%clk 0:03:00.5]}
2... Nc6 {[%clk 0:02:26.5]} 3. Bb5 {[%clk 0:03:00.7]} 3... a6 {[%clk 0:02:26.4]}
4. Ba4 {[%clk 0:03:01.2]} 4... Nf6 {[%clk 0:02:26.3]} 5. O-O {[%clk 0:03:01.8]}
5... Be7 {[%clk 0:02:26]} 6. Re1 {[%clk 0:03:02]} 6... b5 {[%clk 0:02:25.6]} 7.
Bb3 {[%clk 0:03:02.7]} 7... d6 {[%clk 0:02:24.5]} 8. c3 {[%clk 0:03:01.3]} 8...
O-O {[%clk 0:02:23.4]} 9. h3 {[%clk 0:03:01.7]} 9... Be6 {[%clk 0:01:12]} 10. d4
{[%clk 0:02:58.8]} 10... Bxb3 {[%clk 0:01:09.2]} 11. axb3 {[%clk 0:02:59]} 11...
exd4 {[%clk 0:01:04]} 12. cxd4 {[%clk 0:02:57.5]} 12... d5 {[%clk 0:00:58.9]}
13. e5 {[%clk 0:02:53.7]} 13... Ne4 {[%clk 0:00:56.5]} 14. Nc3 {[%clk
0:01:51.9]} 14... f5 {[%clk 0:00:52.2]} 15. exf6 {[%clk 0:01:46.2]} 15... Nxf6
{[%clk 0:00:51.9]} 1/2-1/2

[Event "*** SCC Grand Prix: Titled Tuesday Blitz"]
[Site "Chess.com"]
[Date "2020.06.09"]
[Round "8"]
[White "Irishchessman16"]
[Black "MNyuyu"]
[Result "0-1"]
[WhiteElo "2458"]
[BlackElo "2367"]
[TimeControl "180+1"]
[EndTime "10:32:24 PDT"]
[Termination "MNyuyu won by resignation"]

1. e4 {[%clk 0:03:00.9]} 1... d5 {[%clk 0:02:59.6]} 2. exd5 {[%clk 0:02:59]}
2... Qxd5 {[%clk 0:02:58.9]} 3. Nc3 {[%clk 0:02:59.3]} 3... Qd8 {[%clk
0:02:58.5]} 4. d4 {[%clk 0:02:58.5]} 4... c6 {[%clk 0:02:58.3]} 5. Bf4 {[%clk
0:02:57.1]} 5... Bf5 {[%clk 0:02:57.7]} 6. Qd2 {[%clk 0:02:55.6]} 6... e6 {[%clk
0:02:57.5]} 7. O-O-O {[%clk 0:02:55.1]} 7... Nf6 {[%clk 0:02:57.6]} 8. h3 {[%clk
0:02:54.1]} 8... Bb4 {[%clk 0:02:56.7]} 9. f3 {[%clk 0:02:52.5]} 9... Nd5 {[%clk
0:02:54]} 10. a3 {[%clk 0:02:44.4]} 10... Nxc3 {[%clk 0:02:52]} 11. axb4 {[%clk
0:02:42.8]} 11... Nxd1 {[%clk 0:02:51.4]} 12. Qxd1 {[%clk 0:02:42.6]} 12... O-O
{[%clk 0:02:50.4]} 13. g4 {[%clk 0:02:42]} 13... Bg6 {[%clk 0:02:49.1]} 14. h4
{[%clk 0:02:42.7]} 14... f6 {[%clk 0:02:48.1]} 15. Bc4 {[%clk 0:02:40.6]} 15...
Bf7 {[%clk 0:02:47.3]} 16. h5 {[%clk 0:02:33.4]} 16... Nd7 {[%clk 0:02:41.8]}
17. Qd2 {[%clk 0:02:25.2]} 17... Nb6 {[%clk 0:02:40.2]} 18. Bb3 {[%clk 0:02:25]}
18... Nd5 {[%clk 0:02:38.9]} 19. Bg3 {[%clk 0:02:24.3]} 19... a5 {[%clk
0:02:37.6]} 20. b5 {[%clk 0:02:02.3]} 20... cxb5 {[%clk 0:02:35.1]} 21. h6
{[%clk 0:02:00.2]} 21... g6 {[%clk 0:02:34.2]} 22. g5 {[%clk 0:02:00.2]} 22...
a4 {[%clk 0:02:29.3]} 23. Ba2 {[%clk 0:01:59.3]} 23... b4 {[%clk 0:02:28.1]} 24.
gxf6 {[%clk 0:01:51.3]} 24... b3 {[%clk 0:02:12.5]} 25. cxb3 {[%clk 0:01:49.1]}
25... axb3 {[%clk 0:02:12.1]} 26. Bxb3 {[%clk 0:01:49.4]} 26... Ra1+ {[%clk
0:02:09.1]} 27. Kc2 {[%clk 0:01:49.4]} 27... Qb6 {[%clk 0:01:59.8]} 28. Bc4
{[%clk 0:01:37.9]} 28... Rc8 {[%clk 0:01:55.4]} 29. Kd3 {[%clk 0:01:37.1]} 29...
Nb4+ {[%clk 0:01:50.3]} 30. Ke4 {[%clk 0:01:37]} 30... Rxc4 {[%clk 0:01:47.7]}
31. b3 {[%clk 0:01:35.1]} 31... Qc6+ {[%clk 0:01:43.8]} 0-1

[Event "*** SCC Grand Prix: Titled Tuesday Blitz"]
[Site "Chess.com"]
[Date "2020.06.09"]
[Round "8"]
[White "Kolle05"]
[Black "Sanyura"]
[Result "1-0"]
[WhiteElo "2379"]
[BlackElo "2476"]
[TimeControl "180+1"]
[EndTime "10:32:26 PDT"]
[Termination "Kolle05 won by resignation"]

1. e4 {[%clk 0:03:00.9]} 1... c5 {[%clk 0:02:50.4]} 2. Nf3 {[%clk 0:03:00.4]}
2... e6 {[%clk 0:02:48.9]} 3. d3 {[%clk 0:02:59.8]} 3... Nc6 {[%clk 0:02:48.1]}
4. g3 {[%clk 0:02:59.6]} 4... d5 {[%clk 0:02:47.2]} 5. Nbd2 {[%clk 0:02:59.1]}
5... Nge7 {[%clk 0:02:46.4]} 6. Bg2 {[%clk 0:02:59]} 6... g6 {[%clk 0:02:46.2]}
7. O-O {[%clk 0:02:59.5]} 7... Bg7 {[%clk 0:02:45.7]} 8. Re1 {[%clk 0:02:59.9]}
8... O-O {[%clk 0:02:45.1]} 9. c3 {[%clk 0:02:55.1]} 9... Qc7 {[%clk 0:02:44.1]}
10. Qe2 {[%clk 0:02:54.4]} 10... b6 {[%clk 0:02:43.4]} 11. e5 {[%clk 0:02:54.3]}
11... Ba6 {[%clk 0:02:42.2]} 12. Nf1 {[%clk 0:02:53.6]} 12... h6 {[%clk
0:02:42.1]} 13. h4 {[%clk 0:02:53.2]} 13... d4 {[%clk 0:02:39.8]} 14. c4 {[%clk
0:02:52.8]} 14... b5 {[%clk 0:02:39.2]} 15. b3 {[%clk 0:02:52.9]} 15... bxc4
{[%clk 0:02:30.3]} 16. bxc4 {[%clk 0:02:52.8]} 16... Rab8 {[%clk 0:02:24.9]} 17.
Bf4 {[%clk 0:02:52.6]} 17... Rb7 {[%clk 0:02:15.5]} 18. Qd2 {[%clk 0:02:52]}
18... Kh7 {[%clk 0:02:12.5]} 19. N1h2 {[%clk 0:02:51.2]} 19... Rfb8 {[%clk
0:02:08.4]} 20. Ng4 {[%clk 0:02:40.5]} 20... Rb2 {[%clk 0:02:07.7]} 21. Qc1
{[%clk 0:02:40]} 21... Nf5 {[%clk 0:01:49]} 22. Nf6+ {[%clk 0:02:33.5]} 22...
Bxf6 {[%clk 0:01:42.4]} 23. exf6 {[%clk 0:02:34.4]} 23... Qd8 {[%clk 0:01:39.7]}
24. g4 {[%clk 0:02:34.1]} 24... Nb4 {[%clk 0:01:35.9]} 25. Qxb2 {[%clk
0:02:29.9]} 25... Nxd3 {[%clk 0:01:34.2]} 26. Qxb8 {[%clk 0:02:29.5]} 26... Qxf6
{[%clk 0:01:30.3]} 27. gxf5 {[%clk 0:02:22.6]} 27... Qxf5 {[%clk 0:01:26.4]} 28.
Be5 {[%clk 0:02:15.8]} 28... f6 {[%clk 0:01:20.9]} 29. Qxa7+ {[%clk 0:02:13.5]}
29... Kg8 {[%clk 0:01:19.9]} 30. Rab1 {[%clk 0:01:56.1]} 1-0

[Event "*** SCC Grand Prix: Titled Tuesday Blitz"]
[Site "Chess.com"]
[Date "2020.06.09"]
[Round "8"]
[White "ChelsieMonica"]
[Black "ehrenfeld"]
[Result "1-0"]
[WhiteElo "2381"]
[BlackElo "2482"]
[TimeControl "180+1"]
[EndTime "10:32:36 PDT"]
[Termination "ChelsieMonica won by resignation"]

1. c4 {[%clk 0:03:00.9]} 1... e5 {[%clk 0:02:58.3]} 2. Nc3 {[%clk 0:03:00.5]}
2... Bb4 {[%clk 0:02:57.3]} 3. Nf3 {[%clk 0:02:58.7]} 3... Bxc3 {[%clk
0:02:56.5]} 4. dxc3 {[%clk 0:02:54.7]} 4... d6 {[%clk 0:02:56.4]} 5. e4 {[%clk
0:02:52]} 5... Nf6 {[%clk 0:02:55.7]} 6. Bd3 {[%clk 0:02:52.1]} 6... O-O {[%clk
0:02:55.5]} 7. O-O {[%clk 0:02:52.3]} 7... Nbd7 {[%clk 0:02:55.4]} 8. b4 {[%clk
0:02:50.5]} 8... b6 {[%clk 0:02:39.2]} 9. a4 {[%clk 0:02:47.6]} 9... a5 {[%clk
0:02:38.4]} 10. Bd2 {[%clk 0:02:44.8]} 10... Bb7 {[%clk 0:02:36.1]} 11. Qe2
{[%clk 0:02:43.5]} 11... Qe7 {[%clk 0:02:35.6]} 12. Nh4 {[%clk 0:02:42.4]} 12...
g6 {[%clk 0:02:35]} 13. Bg5 {[%clk 0:02:38.8]} 13... Qe6 {[%clk 0:02:29]} 14.
Rae1 {[%clk 0:02:21.7]} 14... axb4 {[%clk 0:02:16.4]} 15. cxb4 {[%clk
0:02:21.1]} 15... Rxa4 {[%clk 0:02:16.2]} 16. b5 {[%clk 0:02:16.1]} 16... Nc5
{[%clk 0:02:08.2]} 17. f4 {[%clk 0:02:16]} 17... exf4 {[%clk 0:02:05.8]} 18.
Rxf4 {[%clk 0:02:15.7]} 18... Nfd7 {[%clk 0:02:03.2]} 19. Bh6 {[%clk 0:02:13.6]}
19... Re8 {[%clk 0:02:00]} 20. Ref1 {[%clk 0:02:12.7]} 20... Ne5 {[%clk
0:01:53.2]} 21. Rf6 {[%clk 0:02:02.2]} 21... Qg4 {[%clk 0:00:53.4]} 22. Rxf7
{[%clk 0:01:53]} 22... Qxh4 {[%clk 0:00:53]} 23. Rf8+ {[%clk 0:01:52.4]} 1-0

[Event "*** SCC Grand Prix: Titled Tuesday Blitz"]
[Site "Chess.com"]
[Date "2020.06.09"]
[Round "8"]
[White "LyonBeast"]
[Black "vladislavkovalev"]
[Result "1/2-1/2"]
[WhiteElo "2975"]
[BlackElo "2951"]
[TimeControl "180+1"]
[EndTime "10:32:39 PDT"]
[Termination "Game drawn by agreement"]

1. c4 {[%clk 0:03:00.9]} 1... Nf6 {[%clk 0:02:59.9]} 2. g3 {[%clk 0:03:00.5]}
2... e6 {[%clk 0:03:00.1]} 3. Bg2 {[%clk 0:03:00.1]} 3... d5 {[%clk 0:03:00.7]}
4. Nf3 {[%clk 0:03:00.7]} 4... Be7 {[%clk 0:03:00.9]} 5. O-O {[%clk 0:03:00.6]}
5... O-O {[%clk 0:03:01.4]} 6. d3 {[%clk 0:02:56.9]} 6... c5 {[%clk 0:02:52.2]}
7. Bf4 {[%clk 0:02:53.2]} 7... Nc6 {[%clk 0:02:52.3]} 8. Ne5 {[%clk 0:02:51.9]}
8... Nxe5 {[%clk 0:02:45.9]} 9. Bxe5 {[%clk 0:02:52.8]} 9... Nd7 {[%clk
0:02:45.7]} 10. Bc3 {[%clk 0:02:48.3]} 10... d4 {[%clk 0:02:40.5]} 11. Bd2
{[%clk 0:02:48.5]} 11... e5 {[%clk 0:02:39.3]} 12. Na3 {[%clk 0:02:46.4]} 12...
Nf6 {[%clk 0:02:32]} 13. Nc2 {[%clk 0:02:45.6]} 13... Bf5 {[%clk 0:02:25.4]} 14.
Bg5 {[%clk 0:02:18.8]} 14... Nd7 {[%clk 0:02:12.4]} 15. Bxe7 {[%clk 0:02:15.9]}
15... Qxe7 {[%clk 0:02:13.3]} 16. e4 {[%clk 0:01:56.4]} 16... Be6 {[%clk
0:02:06.3]} 17. f4 {[%clk 0:01:56.3]} 17... f6 {[%clk 0:02:03.7]} 18. Qd2 {[%clk
0:01:56.5]} 18... a6 {[%clk 0:02:02.2]} 19. a4 {[%clk 0:01:55]} 19... b6 {[%clk
0:01:53.5]} 20. Na3 {[%clk 0:01:45.9]} 20... Nb8 {[%clk 0:01:47.8]} 21. fxe5
{[%clk 0:01:45.9]} 21... fxe5 {[%clk 0:01:47.4]} 22. Rxf8+ {[%clk 0:01:46.8]}
22... Qxf8 {[%clk 0:01:46.8]} 23. Rf1 {[%clk 0:01:47.2]} 23... Qe7 {[%clk
0:01:47.2]} 24. h4 {[%clk 0:01:42]} 24... Nc6 {[%clk 0:01:47.3]} 25. Nc2 {[%clk
0:01:42.5]} 25... Rf8 {[%clk 0:01:37.3]} 26. Rxf8+ {[%clk 0:01:41.5]} 26... Kxf8
{[%clk 0:01:36.9]} 27. Bf3 {[%clk 0:01:38.2]} 27... Qf6 {[%clk 0:01:24.7]} 28.
Bd1 {[%clk 0:01:35.8]} 28... a5 {[%clk 0:01:21.2]} 1/2-1/2

[Event "*** SCC Grand Prix: Titled Tuesday Blitz"]
[Site "Chess.com"]
[Date "2020.06.09"]
[Round "8"]
[White "cukus"]
[Black "Zurability"]
[Result "0-1"]
[WhiteElo "2461"]
[BlackElo "2664"]
[TimeControl "180+1"]
[EndTime "10:32:51 PDT"]
[Termination "Zurability won by resignation"]

1. e4 {[%clk 0:03:00.9]} 1... c5 {[%clk 0:02:56]} 2. Nf3 {[%clk 0:02:59]} 2...
d6 {[%clk 0:02:55.9]} 3. d4 {[%clk 0:02:59.1]} 3... cxd4 {[%clk 0:02:56.2]} 4.
Nxd4 {[%clk 0:03:00]} 4... Nf6 {[%clk 0:02:56.1]} 5. Nc3 {[%clk 0:02:58.6]} 5...
a6 {[%clk 0:02:56.2]} 6. Be3 {[%clk 0:02:49.4]} 6... e5 {[%clk 0:02:55.5]} 7.
Nb3 {[%clk 0:02:49.3]} 7... Be6 {[%clk 0:02:52.5]} 8. f3 {[%clk 0:02:49.8]} 8...
h5 {[%clk 0:02:51.1]} 9. Nd5 {[%clk 0:02:48.2]} 9... Bxd5 {[%clk 0:02:46.8]} 10.
exd5 {[%clk 0:02:48.4]} 10... Nbd7 {[%clk 0:02:47.2]} 11. Qd2 {[%clk 0:02:48.5]}
11... Rc8 {[%clk 0:02:41.5]} 12. Be2 {[%clk 0:02:39.9]} 12... Nb6 {[%clk
0:02:38.8]} 13. Bg5 {[%clk 0:02:36.1]} 13... Nbxd5 {[%clk 0:02:31.5]} 14. O-O-O
{[%clk 0:02:36]} 14... Be7 {[%clk 0:02:23.2]} 15. Kb1 {[%clk 0:02:36.2]} 15...
O-O {[%clk 0:02:20.5]} 16. g4 {[%clk 0:02:30]} 16... hxg4 {[%clk 0:02:13.1]} 17.
fxg4 {[%clk 0:02:23.6]} 17... Nc3+ {[%clk 0:01:57]} 18. bxc3 {[%clk 0:02:01.9]}
18... Ne4 {[%clk 0:01:57]} 19. Qe3 {[%clk 0:01:42.7]} 19... Nxc3+ {[%clk
0:01:54.2]} 20. Ka1 {[%clk 0:01:40.2]} 20... Bxg5 {[%clk 0:01:53]} 21. Qf2
{[%clk 0:01:30.9]} 21... Nxd1 {[%clk 0:01:52.8]} 22. Rxd1 {[%clk 0:01:29.8]}
22... Rxc2 {[%clk 0:01:50.8]} 23. Qf3 {[%clk 0:01:16.8]} 23... Qc7 {[%clk
0:01:49]} 24. Qd3 {[%clk 0:00:48.5]} 24... e4 {[%clk 0:01:47.8]} 0-1

[Event "*** SCC Grand Prix: Titled Tuesday Blitz"]
[Site "Chess.com"]
[Date "2020.06.09"]
[Round "8"]
[White "topin8"]
[Black "isainz"]
[Result "1-0"]
[WhiteElo "2353"]
[BlackElo "2156"]
[TimeControl "180+1"]
[EndTime "10:33:13 PDT"]
[Termination "topin8 won by resignation"]

1. e4 {[%clk 0:02:57.8]} 1... c5 {[%clk 0:02:57.7]} 2. Nf3 {[%clk 0:02:57.4]}
2... Nc6 {[%clk 0:02:57.8]} 3. Bb5 {[%clk 0:02:57]} 3... g6 {[%clk 0:02:57.2]}
4. Bxc6 {[%clk 0:02:57]} 4... dxc6 {[%clk 0:02:56.9]} 5. O-O {[%clk 0:02:57.9]}
5... Bg7 {[%clk 0:02:56.5]} 6. h3 {[%clk 0:02:58.2]} 6... Nf6 {[%clk 0:02:36.3]}
7. Nc3 {[%clk 0:02:57.7]} 7... O-O {[%clk 0:02:33.8]} 8. d3 {[%clk 0:02:57.4]}
8... Nd7 {[%clk 0:02:31.3]} 9. Nh2 {[%clk 0:02:57.8]} 9... b5 {[%clk 0:02:25.6]}
10. f4 {[%clk 0:02:55.8]} 10... Bd4+ {[%clk 0:02:22.1]} 11. Kh1 {[%clk
0:02:54.6]} 11... b4 {[%clk 0:02:19]} 12. Ne2 {[%clk 0:02:54.3]} 12... Bg7
{[%clk 0:02:17.1]} 13. Be3 {[%clk 0:02:46.1]} 13... Bxb2 {[%clk 0:02:10.9]} 14.
Rb1 {[%clk 0:02:45.8]} 14... Bg7 {[%clk 0:02:07.1]} 15. f5 {[%clk 0:02:42.7]}
15... Qa5 {[%clk 0:01:59.1]} 16. Ng3 {[%clk 0:02:34.9]} 16... Qxa2 {[%clk
0:01:53.1]} 17. Ng4 {[%clk 0:02:33.9]} 17... Bb7 {[%clk 0:01:39.2]} 18. Bh6
{[%clk 0:02:29.9]} 18... f6 {[%clk 0:01:35.9]} 19. Qd2 {[%clk 0:01:29.9]} 19...
a5 {[%clk 0:01:26.7]} 20. Bxg7 {[%clk 0:01:26.5]} 20... Kxg7 {[%clk 0:01:26.8]}
21. Qh6+ {[%clk 0:01:26.6]} 21... Kg8 {[%clk 0:01:18.7]} 22. fxg6 {[%clk
0:01:27.5]} 22... hxg6 {[%clk 0:01:09.4]} 23. Qxg6+ {[%clk 0:01:25.8]} 23... Kh8
{[%clk 0:01:07]} 24. Rf5 {[%clk 0:01:17]} 24... Qxb1+ {[%clk 0:01:03.7]} 25. Kh2
{[%clk 0:01:16.8]} 1-0

[Event "*** SCC Grand Prix: Titled Tuesday Blitz"]
[Site "Chess.com"]
[Date "2020.06.09"]
[Round "8"]
[White "Ladislav1969"]
[Black "Grandmaster2B"]
[Result "1-0"]
[WhiteElo "2343"]
[BlackElo "2423"]
[TimeControl "180+1"]
[EndTime "10:33:22 PDT"]
[Termination "Ladislav1969 won by resignation"]

1. e4 {[%clk 0:03:00.9]} 1... c5 {[%clk 0:02:56.8]} 2. d4 {[%clk 0:03:00.9]}
2... cxd4 {[%clk 0:02:56.7]} 3. c3 {[%clk 0:03:01.3]} 3... Nf6 {[%clk
0:02:56.9]} 4. e5 {[%clk 0:03:01.1]} 4... Nd5 {[%clk 0:02:57.5]} 5. Nf3 {[%clk
0:03:01.7]} 5... Nc6 {[%clk 0:02:57.6]} 6. Bc4 {[%clk 0:03:00.2]} 6... Nb6
{[%clk 0:02:58]} 7. Bb3 {[%clk 0:03:00.2]} 7... d5 {[%clk 0:02:58]} 8. exd6
{[%clk 0:03:00.1]} 8... Qxd6 {[%clk 0:02:57.7]} 9. O-O {[%clk 0:02:59.3]} 9...
Bf5 {[%clk 0:02:56.9]} 10. Nxd4 {[%clk 0:02:54.9]} 10... Nxd4 {[%clk 0:02:56.1]}
11. cxd4 {[%clk 0:02:55.1]} 11... e6 {[%clk 0:02:54.6]} 12. Qf3 {[%clk
0:02:36.4]} 12... Qd7 {[%clk 0:02:51.6]} 13. Nc3 {[%clk 0:02:33.9]} 13... Be7
{[%clk 0:02:51.8]} 14. d5 {[%clk 0:02:28.6]} 14... O-O {[%clk 0:02:42.5]} 15.
dxe6 {[%clk 0:02:22.1]} 15... Bxe6 {[%clk 0:02:39.7]} 16. Rd1 {[%clk 0:02:22]}
16... Qc8 {[%clk 0:02:32.5]} 17. Bxe6 {[%clk 0:02:15.7]} 17... fxe6 {[%clk
0:02:31]} 18. Qe4 {[%clk 0:02:07.9]} 18... Qc4 {[%clk 0:02:14.2]} 19. Qxb7
{[%clk 0:01:32.6]} 19... Bc5 {[%clk 0:02:11.9]} 20. Be3 {[%clk 0:01:32.6]} 20...
Bxe3 {[%clk 0:02:11.8]} 21. fxe3 {[%clk 0:01:32.1]} 21... Rab8 {[%clk
0:01:39.2]} 22. Qe7 {[%clk 0:01:25.7]} 22... Nd5 {[%clk 0:01:27.5]} 23. Qxe6+
{[%clk 0:01:25.1]} 23... Kh8 {[%clk 0:01:05.7]} 24. Qxd5 {[%clk 0:01:24.8]}
24... Qh4 {[%clk 0:01:05.3]} 25. Rf1 {[%clk 0:01:21.1]} 25... Qe7 {[%clk
0:00:58.8]} 26. Qe4 {[%clk 0:01:13.9]} 26... Qc5 {[%clk 0:00:55.7]} 27. Rxf8+
{[%clk 0:01:12.1]} 27... Rxf8 {[%clk 0:00:56.6]} 28. Rf1 {[%clk 0:01:11]} 1-0

[Event "*** SCC Grand Prix: Titled Tuesday Blitz"]
[Site "Chess.com"]
[Date "2020.06.09"]
[Round "8"]
[White "TrenerChos"]
[Black "silverback96"]
[Result "0-1"]
[WhiteElo "2347"]
[BlackElo "2211"]
[TimeControl "180+1"]
[EndTime "10:33:23 PDT"]
[Termination "silverback96 won by checkmate"]

1. d4 {[%clk 0:03:00.9]} 1... Nf6 {[%clk 0:02:56.2]} 2. c4 {[%clk 0:03:00.1]}
2... e6 {[%clk 0:02:55.7]} 3. Nc3 {[%clk 0:03:01]} 3... d5 {[%clk 0:02:56.3]} 4.
Nf3 {[%clk 0:02:59.5]} 4... c5 {[%clk 0:02:56]} 5. e3 {[%clk 0:03:00.4]} 5...
cxd4 {[%clk 0:02:54]} 6. exd4 {[%clk 0:02:50.4]} 6... Nc6 {[%clk 0:02:53.8]} 7.
cxd5 {[%clk 0:02:47.9]} 7... Nxd5 {[%clk 0:02:54.7]} 8. Be2 {[%clk 0:02:42.9]}
8... Be7 {[%clk 0:02:53.7]} 9. O-O {[%clk 0:02:40.5]} 9... O-O {[%clk
0:02:54.2]} 10. Be3 {[%clk 0:02:36.6]} 10... Nxe3 {[%clk 0:02:52.6]} 11. fxe3
{[%clk 0:02:33.7]} 11... Bg5 {[%clk 0:02:52.6]} 12. Nxg5 {[%clk 0:02:30]} 12...
Qxg5 {[%clk 0:02:53.5]} 13. Qd2 {[%clk 0:02:30.2]} 13... e5 {[%clk 0:02:53.4]}
14. d5 {[%clk 0:02:27.4]} 14... Rd8 {[%clk 0:02:53.5]} 15. Rad1 {[%clk
0:02:19.6]} 15... Ne7 {[%clk 0:02:43.3]} 16. e4 {[%clk 0:02:15.8]} 16... Qxd2
{[%clk 0:02:44.2]} 17. Rxd2 {[%clk 0:02:16.7]} 17... Ng6 {[%clk 0:02:45.1]} 18.
g3 {[%clk 0:02:15.4]} 18... Bd7 {[%clk 0:02:44.9]} 19. d6 {[%clk 0:02:08.7]}
19... a6 {[%clk 0:02:42.9]} 20. Nd5 {[%clk 0:02:06.2]} 20... Bc6 {[%clk
0:02:41.4]} 21. Nb6 {[%clk 0:01:57.3]} 21... Rab8 {[%clk 0:02:40.5]} 22. Rfd1
{[%clk 0:01:54.2]} 22... Bxe4 {[%clk 0:02:30.7]} 23. d7 {[%clk 0:01:49.2]} 23...
Bc6 {[%clk 0:02:31]} 24. Rd6 {[%clk 0:01:42.5]} 24... e4 {[%clk 0:02:27.4]} 25.
Bxa6 {[%clk 0:01:41.9]} 25... Ne5 {[%clk 0:02:26.3]} 26. Rxc6 {[%clk 0:01:42.5]}
26... bxc6 {[%clk 0:02:17.5]} 27. Nc8 {[%clk 0:01:34.4]} 27... Rxd7 {[%clk
0:02:17.2]} 28. Rxd7 {[%clk 0:01:31]} 28... Nxd7 {[%clk 0:02:18.1]} 29. b3
{[%clk 0:01:31.9]} 29... Nc5 {[%clk 0:02:16.8]} 30. Ne7+ {[%clk 0:01:32.8]}
30... Kf8 {[%clk 0:02:16]} 31. Nxc6 {[%clk 0:01:31.3]} 31... Nxa6 {[%clk
0:02:16]} 32. Nxb8 {[%clk 0:01:32.2]} 32... Nxb8 {[%clk 0:02:16.9]} 33. Kf2
{[%clk 0:01:27.1]} 33... f5 {[%clk 0:02:16.8]} 34. Ke3 {[%clk 0:01:28]} 34...
Ke7 {[%clk 0:02:17.7]} 35. Kf4 {[%clk 0:01:27.6]} 35... g6 {[%clk 0:02:17.6]}
36. a4 {[%clk 0:01:08.9]} 36... Kd6 {[%clk 0:02:18.5]} 37. Kg5 {[%clk
0:01:07.2]} 37... e3 {[%clk 0:02:17.2]} 38. Kf4 {[%clk 0:01:05.9]} 38... e2
{[%clk 0:02:18.1]} 39. Kf3 {[%clk 0:01:06.8]} 39... e1=Q {[%clk 0:02:19]} 40.
Kf4 {[%clk 0:01:07.6]} 40... Qd2+ {[%clk 0:02:16.9]} 41. Kf3 {[%clk 0:01:08.5]}
41... Nc6 {[%clk 0:02:15.8]} 42. b4 {[%clk 0:00:55.4]} 42... Nd4# {[%clk
0:02:16.7]} 0-1